[Event "44th Chess Olympiad Women 2022"]
[Site "Chennai"]
[Date "2022.07.30"]
[Round "2.25"]
[White "Brunello, Marina"]
[Black "Sultana, Sharmin Shirin"]
[Result "1-0"]
[ECO "C42"]
[WhiteElo "2341"]
[BlackElo "1995"]
[Annotator "TA"]
[PlyCount "119"]
[EventDate "2022.07.29"]
[EventType "team-tourn"]
[EventCountry "IND"]
[SourceTitle "playchess.com"]
[Source "ChessBase"]
[SourceQuality "1"]
[WhiteTeam "Italy"]
[BlackTeam "Bangladesh"]
[WhiteTeamCountry "ITA"]
[BlackTeamCountry "BAN"]
[TimeControl "40/5400+30:1800+30"]

{[%evp 9,119,9,33,19,39,33,34,36,33,18,21,13,16,16,18,17,24,12,16,13,33,22,25,21,42,27,39,15,25,11,45,37,25,18,51,40,97,97,93,85,138,96,83,16,35,0,39,0,0,0,0,0,70,57,90,87,88,60,101,0,105,90,115,111,110,112,735,734,661,702,670,694,29992,398,402,375,368,344,350,281,302,302,284,201,255,244,304,258,256,248,260,265,279,254,243,185,224,98,212,213,306,302,597,583,3506,3335,2172,831,5110,2782,29998,29999]} 1. e4 {[%emt 0:00:05]} e5 {[%emt 0:00:24]} 2. Nf3 {[%emt 0:04:38]} Nf6 {[%emt 0:00:11]} 3. Nxe5 {[%emt 0:01:36]} d6 {[%emt 0:00:14]} 4. Nf3 {[%emt 0:00:04]} Nxe4 {[%emt 0:00:05]} 5. c4 {[%emt 0:03:06]} c6 {[%emt 0:09:28]} 6. Nc3 {[%emt 0:06:21] C42: Petroff Defence: 3 Nxe5 and unusual White 3rd moves.} Nxc3 {[%emt 0:10:44]} 7. dxc3 {[%emt 0:00:07]} Be7 {[%emt 0:03:41]} 8. Bf4 {[%emt 0:05:00] White is slightly better.} O-O {[%emt 0:04:11]} 9. Be2 {[%emt 0:02:14]} Bf5 {[%emt 0:11:17] [#]} 10. O-O $146 {[%emt 0:04:51]} ({Predecessor:} 10. Qd2 Qb6 11. O-O Rd8 12. Rfe1 d5 13. Bf1 Be4 14. Ng5 Bxg5 15. Bxg5 f6 16. c5 Qxc5 17. Bxf6 {1-0 (35) Liepold,S (2161)-Reimold,J (2046) Nuremberg 2012}) 10... Na6 {[%emt 0:00:00]} 11. Nd4 {[%emt 0:00:48]} Bg6 {[%emt 0:00:00]} 12. Bg4 {[%emt 0:00:31]} Nc5 {[%emt 0:17:15]} 13. Nf5 {[%emt 0:02:32]} Bxf5 {[%emt 0:00:42]} 14. Bxf5 {[%emt 0:00:05]} Ne6 {[%emt 0:00:48]} 15. Be3 {[%emt 0:10:56] A strong pair of Bishops.} g6 {[%emt 0:09:53]} 16. Bc2 {[%emt 0:04:24]} Qc7 {[%emt 0:12:28]} 17. Qe2 {[%emt 0:10:02]} Rfe8 {[%emt 0:00:24]} 18. Rad1 {[%emt 0:03:52]} Bf8 {[%emt 0:00:31]} 19. Qg4 {[%emt 0:04:48]} Bg7 {[%emt 0:04:41]} 20. Qg3 {[%emt 0:00:21]} Rad8 {[%emt 0:00:49]} 21. Rd2 {[%emt 0:00:54]} (21. Bxa7 $2 b6 22. Bxb6 Qxb6 $19) 21... b6 {[%emt 0:06:10]} 22. Rfd1 {[%emt 0:00:53][%cal Rd2d6]} Be5 {[%emt 0:00:36]} (22... f5 $14) 23. f4 $16 {[%emt 0:00:55][%cal Bf2f4,Bf4f5][%mdl 32]} Bg7 {[%emt 0:00:36]} 24. f5 {[%emt 0:07:38]} Be5 {[%emt 0:00:16]} ({Black should play} 24... Nc5) 25. Qf3 {[%emt 0:01:12]} Ng7 {[%emt 0:01:25]} 26. Bd4 {[%emt 0:01:55]} (26. g4 $16) 26... c5 {[%emt 0:02:15]} 27. Bxe5 {[%emt 0:00:55]} dxe5 {[%emt 0:00:06]} 28. f6 {[%emt 0:04:58]} Ne6 {[%emt 0:00:30]} 29. Qe3 {[%emt 0:00:19]} Rxd2 {[%emt 0:01:13]} 30. Rxd2 {[%emt 0:00:03]} h5 {[%emt 0:02:44]} (30... Rd8 $1 $11) 31. g3 $14 {[%emt 0:01:34]} Kh7 {[%emt 0:01:10]} 32. Rd5 $36 {[%emt 0:00:08][%mdl 2048] White is really pushing.} Nf8 {[%emt 0:00:40]} 33. Qg5 $1 {[%emt 0:01:06] Threatens to win with Qxh5+.} Re6 {[%emt 0:00:36]} 34. Qxh5+ $1 {[%emt 0:02:13]} Kg8 {[%emt 0:00:02]} 35. Qh4 {[%emt 0:01:34] Hoping for g4. 0x0.001e3cf66555dp-1022s more active pieces. White stays focused until the end.} Nh7 {[%emt 0:00:35] [#]} 36. Bxg6 $1 {[%emt 0:04:31][%mdl 512]} Nxf6 {[%emt 0:01:14]} (36... fxg6 $2 37. Rd8+ $3 {[%mdl 512]} Qxd8 38. f7+ Kxf7 39. Qxd8 $18) 37. Bf5 {[%emt 0:00:28]} Rd6 $2 {[%emt 0:00:33][%mdl 8192]} (37... Nxd5 $16 38. cxd5 Rd6) 38. Qg5+ $18 {[%emt 0:01:46]} Kf8 {[%emt 0:00:06]} 39. Qh6+ {[%emt 0:00:40]} Kg8 {[%emt 0:00:01] [#]} 40. Bh7+ $1 {[%emt 0:01:22][%mdl 512]} Kh8 {[%emt 0:00:24]} (40... Nxh7 41. Qxd6) 41. Bc2+ $2 {[%emt 0:30:35]} (41. Bd3+ {mates} Kg8 42. Rxe5 $1 Rd5 43. Bh7+ Kh8 44. Qxf6+ Kxh7 45. Rxd5 Kg8 46. Rh5 Qxg3+ 47. hxg3 Kf8 48. Rh8#) 41... Kg8 {[%emt 0:30:10]} 42. Qg5+ {[%emt 0:07:53]} ({Not} 42. Rxe5 Rd1+ 43. Bxd1 Qxe5 $18) 42... Kf8 {[%emt 0:00:00]} 43. Rxe5 {[%emt 0:00:00] White threatens Qh6+ and mate.} Ng8 {[%emt 0:00:00][%cal Bf6g8,Bg8e7,Be7c6,Bc6e5][%mdl 32] Against Qh6+} 44. Rd5 {[%emt 0:00:00]} ({Don't take} 44. Bh7 Nh6 45. Bc2 Qd8 $18) 44... Ne7 {[%emt 0:00:00]} 45. Rxd6 {[%emt 0:00:00]} ({Don't do} 45. Re5 Qd8 46. Qe3 Nc6 $18) 45... Qxd6 {[%emt 0:00:00][%mdl 4096] Endgame KQB-KQN} 46. Qf4 {[%emt 0:00:00]} Qe6 {[%emt 0:00:00]} 47. Kf2 {[%emt 0:00:00]} Nc6 {[%emt 0:00:00]} 48. Bd3 {[%emt 0:00:00]} Ne5 {[%emt 0:00:00]} 49. Be2 {[%emt 0:00:00]} Ke7 {[%emt 0:01:27]} 50. h4 {[%emt 0:00:00]} f6 {[%emt 0:00:42]} 51. h5 {[%emt 0:00:00]} Qh3 {[%emt 0:01:18]} 52. Ke3 {[%emt 0:00:00]} Qh1 {[%emt 0:00:44] [#]} 53. h6 {[%emt 0:00:00]} (53. Qf1 $1 $18 {[%cal Rf1h1] and the rest is easy.} Qh2 54. Qe1) 53... Qg1+ {[%emt 0:00:27]} (53... Kf7 $16) 54. Kd2 {[%emt 0:00:00]} Qb1 {[%emt 0:00:07] [#]} (54... Qh2 {is a better defense.} 55. Kd1 Kf7) 55. Bd1 $1 {[%emt 0:00:00]} Qxa2 $2 {[%emt 0:03:08]} (55... Qxb2+ $2 56. Bc2 $18) (55... Qd3+ 56. Kc1 Kf7) 56. h7 {[%emt 0:00:00]} Qxb2+ {[%emt 0:00:46]} 57. Bc2 {[%emt 0:00:00]} Nf7 {[%emt 0:00:35]} 58. Qc7+ {[%emt 0:00:00]} Kf8 {[%emt 0:00:12]} 59. Qb8+ {[%emt 0:00:00]} Kg7 {[%emt 0:00:04]} 60. Qg8+ {[%emt 0:00:00] Weighted Error Value: White=0.23 (precise) /Black=0.49} 1-0

[Event "44th Chess Olympiad Women 2022"]
[Site "Chennai"]
[Date "2022.07.30"]
[Round "2.25"]
[White "Gueci, Tea"]
[Black "Jannatul, Ferdous"]
[Result "1/2-1/2"]
[ECO "B12"]
[WhiteElo "2254"]
[BlackElo "1815"]
[Annotator "TA"]
[PlyCount "169"]
[EventDate "2022.07.29"]
[EventType "team-tourn"]
[EventCountry "IND"]
[SourceTitle "playchess.com"]
[Source "ChessBase"]
[SourceQuality "1"]
[WhiteTeam "Italy"]
[BlackTeam "Bangladesh"]
[WhiteTeamCountry "ITA"]
[BlackTeamCountry "BAN"]
[TimeControl "40/5400+30:1800+30"]

{[%evp 12,169,10,11,16,0,0,0,0,0,0,0,0,0,0,0,53,54,52,40,48,-197,-206,-250,-234,-342,-343,-327,-336,-410,-418,-467,-454,-440,-422,-424,-433,-422,-424,-423,-422,-469,-487,-488,-462,-523,-508,-560,-393,-380,-392,-376,-374,-433,-433,-493,-490,-460,-389,-429,-443,-370,-246,-247,-220,-242,-242,-230,-216,-206,-184,-195,-175,-177,-164,-164,-72,-77,-68,-103,-56,-53,-53,-58,-51,-51,-22,-18,-8,-8,0,0,0,-49,-49,-49,-49,-48,-48,-48,-48,-48,-48,-48,-48,-48,-48,-48,-48,-49,-49,-49,-49,-49,-49,-49,-49,-49,-49,-49,-49,-49,-49,-49,-49,-49,-49,-49,-49,-49,-49,-49,-49,-49,-48,-48,-48,-49,-49,-49,-49,-49,-49,-49,-49,-49,-49,-49,-49,-49,-49,-49,-49,-49,-49,-49,0,-49,0,-63]} 1. e4 {[%emt 0:00:03]} c6 {[%emt 0:00:08]} 2. d4 {[%emt 0:00:04]} d5 {[%emt 0:00:07]} 3. e5 {[%emt 0:00:09]} Bf5 {[%emt 0:00:03]} 4. h4 {[%emt 0:00:08]} h5 {[%emt 0:00:23]} 5. Bd3 {[%emt 0:00:13]} Bxd3 {[%emt 0:00:46]} 6. Qxd3 {[%emt 0:00:08]} e6 {[%emt 0:00:31]} 7. Nf3 {[%emt 0:00:12]} Qa5+ {[%emt 0:01:33] B12: Caro-Kann: Advance Variation.} 8. Nbd2 {[%emt 0:00:18]} Qa6 {[%emt 0:00:37]} 9. c4 {[%emt 0:00:36]} Nh6 {[%emt 0:03:29]} 10. O-O {[%emt 0:00:31]} Nf5 {[%emt 0:00:42]} 11. b3 {[%emt 0:00:44]} Be7 {[%emt 0:01:21]} 12. a4 {[%emt 0:01:00]} Nd7 {[%emt 0:09:18]} 13. Ba3 {[%emt 0:08:51] [#]} O-O $146 {[%emt 0:13:49]} (13... Bxh4 $11 14. Rfb1 (14. Nxh4 Nxh4 15. Qc3 Nf5 $11) 14... Qb6) ({Predecessor:} 13... c5 14. Qc3 Qc6 15. Rfd1 O-O 16. cxd5 exd5 17. Rac1 Rac8 18. Qd3 Qe6 19. Re1 Rc6 20. dxc5 Nxc5 {½-½ (52) Gumularz,S (2539)-Fridman,D (2626) Katowice 2021}) 14. Bxe7 $14 {[%emt 0:07:44]} Nxe7 {[%emt 0:02:29]} 15. Ng5 {[%emt 0:00:39][%csl Gg5][%cal Rd3h7]} Nf5 {[%emt 0:07:25][%cal Be7f5,Bf5d4,Bd4e2][%mdl 32]} 16. f3 $2 {[%emt 0:09:14]} (16. Rfd1 $14) 16... Qb6 $19 {[%emt 0:02:03]} 17. c5 {[%emt 0:16:00]} Qb4 {[%emt 0:01:14]} 18. f4 {[%emt 0:01:27]} (18. Rac1 $142) 18... Qxd4+ {[%emt 0:01:07]} 19. Qxd4 {[%emt 0:00:32]} Nxd4 {[%emt 0:00:03]} 20. b4 {[%emt 0:00:43]} a5 {[%emt 0:14:33]} 21. Rab1 {[%emt 0:12:15]} Ne2+ {[%emt 0:04:05]} 22. Kh2 {[%emt 0:02:38]} Nc3 {[%emt 0:01:06]} 23. Rb3 {[%emt 0:02:48]} axb4 {[%emt 0:04:46]} 24. Rxb4 {[%emt 0:03:43]} Nxc5 {[%emt 0:03:14]} 25. Nb3 {[%emt 0:05:12]} Rxa4 {[%emt 0:07:48]} 26. Rb6 {[%emt 0:04:47]} Nxb3 {[%emt 0:02:38]} 27. Rxb3 {[%emt 0:00:06]} Nb5 {[%emt 0:01:08]} 28. g3 {[%emt 0:01:50]} g6 {[%emt 0:00:27][%cal Bg7g6,Bg6h5][%mdl 32]} 29. g4 {[%emt 0:02:04]} Ra3 {[%emt 0:06:19]} 30. Rxa3 {[%emt 0:02:22]} Nxa3 {[%emt 0:00:04]} 31. gxh5 {[%emt 0:00:14]} gxh5 {[%emt 0:01:02][%mdl 4096] Endgame KRN-KRN} 32. f5 {[%emt 0:01:07]} exf5 {[%emt 0:08:37]} 33. Rxf5 {[%emt 0:00:33]} Nc4 {[%emt 0:01:23]} 34. Nf3 {[%emt 0:01:45]} Ra8 {[%emt 0:01:11]} 35. Rg5+ {[%emt 0:05:46]} Kf8 {[%emt 0:00:17]} 36. Rxh5 {[%emt 0:00:10]} Ra3 {[%emt 0:00:59]} 37. Rf5 {[%emt 0:06:43]} Re3 {[%emt 0:01:36]} 38. h5 {[%emt 0:01:39]} Kg7 {[%emt 0:00:21] ...b5 is the strong threat.} 39. Rg5+ {[%emt 0:04:12]} Kh6 {[%emt 0:00:35]} 40. Rf5 {[%emt 0:00:12]} d4 {[%emt 0:00:40]} 41. Nxd4 {[%emt 0:13:28]} Rxe5 {[%emt 0:11:48]} 42. Rxf7 {[%emt 0:00:57]} Rxh5+ {[%emt 0:00:03]} 43. Kg3 {[%emt 0:00:42] [#]} Rd5 {[%emt 0:04:33]} (43... Na5 $1 $19 {and Black stays clearly on top.} 44. Rf8 Kg6) 44. Ne6 $17 {[%emt 0:09:27]} Rd3+ {[%emt 0:04:59]} 45. Kf2 {[%emt 0:01:20]} b5 {[%emt 0:01:01]} ({Black should try} 45... Rd2+ $17 46. Kg3 Nd6 47. Rf6+ Kh7) 46. Rf6+ $15 {[%emt 0:00:29]} Kh5 {[%emt 0:06:16]} 47. Ng7+ {[%emt 0:00:57][%mdl 64] [#] Discovered Attack} Kg4 {[%emt 0:00:32] Strongly threatening ...Rc3.} 48. Rxc6 {[%emt 0:01:55]} Na3 {[%emt 0:03:04]} 49. Ke2 {[%emt 0:00:51]} Rd7 {[%emt 0:00:45]} 50. Ne6 {[%emt 0:00:39]} b4 {[%emt 0:01:02]} 51. Nc5 {[%emt 0:00:32]} Rd5 {[%emt 0:01:23]} 52. Rb6 {[%emt 0:03:19]} Rxc5 {[%emt 0:00:27]} 53. Rxb4+ {[%emt 0:00:03] KRN-KR} Kf5 {[%emt 0:00:14]} 54. Rh4 {[%emt 0:00:17]} Ke6 {[%emt 0:00:45]} 55. Rh6+ {[%emt 0:00:06]} Kd7 {[%emt 0:00:02]} 56. Kd3 {[%emt 0:00:55]} Nb5 {[%emt 0:00:09]} 57. Rg6 {[%emt 0:00:53]} Rc3+ {[%emt 0:00:56]} 58. Ke4 {[%emt 0:00:42]} Nc7 {[%emt 0:00:55]} 59. Kd4 {[%emt 0:00:39]} Rh3 {[%emt 0:00:26]} 60. Ke5 {[%emt 0:01:13]} Rh5+ {[%emt 0:00:18]} 61. Ke4 {[%emt 0:00:33]} Ne6 {[%emt 0:00:15]} 62. Rg2 {[%emt 0:00:50]} Nc5+ {[%emt 0:00:30]} 63. Kd4 {[%emt 0:00:10]} Kd6 {[%emt 0:00:10]} 64. Rg6+ {[%emt 0:00:31]} Ne6+ {[%emt 0:00:03]} 65. Ke4 {[%emt 0:00:40]} Re5+ {[%emt 0:00:08]} 66. Kf3 {[%emt 0:00:19]} Kd5 {[%emt 0:00:10]} 67. Rg8 {[%emt 0:00:17]} Nd4+ {[%emt 0:00:58]} 68. Kf4 {[%emt 0:00:13]} Rf5+ {[%emt 0:00:55]} 69. Ke3 {[%emt 0:00:19]} Rf3+ {[%emt 0:00:06]} 70. Kd2 {[%emt 0:00:08]} Kc4 {[%emt 0:01:45]} 71. Rc8+ {[%emt 0:00:14]} Kb4 {[%emt 0:00:17]} 72. Rb8+ {[%emt 0:00:16]} Ka3 {[%emt 0:00:21]} 73. Rd8 {[%emt 0:00:52]} Nb3+ {[%emt 0:00:43]} 74. Kc2 {[%emt 0:00:34]} Kb4 {[%emt 0:00:53]} 75. Rb8+ {[%emt 0:00:17]} Kc4 {[%emt 0:00:02]} 76. Rc8+ {[%emt 0:00:07]} Nc5 {[%emt 0:00:05]} 77. Kd2 {[%emt 0:00:13]} Rh3 {[%emt 0:00:59]} 78. Ke2 {[%emt 0:00:17]} Kd4 {[%emt 0:00:18]} 79. Rd8+ {[%emt 0:00:13]} Ke5 {[%emt 0:00:28]} 80. Re8+ {[%emt 0:00:17]} Ne6 {[%emt 0:00:03]} 81. Kd2 {[%emt 0:00:17]} Kd5 {[%emt 0:00:39]} 82. Ra8 {[%emt 0:00:48]} Ke4 {[%emt 0:00:29]} 83. Re8 {[%emt 0:00:14]} Kd5 {[%emt 0:00:07]} 84. Ra8 $1 {[%emt 0:00:04]} Ke4 {[%emt 0:00:28]} 85. Re8 {[%emt 0:00:06] Black had all chances to win.  Weighted Error Value: White=0.22 (precise) /Black=0.14 (very precise)} 1/2-1/2

[Event "44th Chess Olympiad Women 2022"]
[Site "Chennai"]
[Date "2022.07.30"]
[Round "2.25"]
[White "Noshin, Anjum"]
[Black "Zimina, Olga"]
[Result "1-0"]
[ECO "B12"]
[WhiteElo "2027"]
[BlackElo "2340"]
[Annotator "TA"]
[PlyCount "109"]
[EventDate "2022.07.29"]
[EventType "team-tourn"]
[EventCountry "IND"]
[SourceTitle "playchess.com"]
[Source "ChessBase"]
[SourceQuality "1"]
[WhiteTeam "Bangladesh"]
[BlackTeam "Italy"]
[WhiteTeamCountry "BAN"]
[BlackTeamCountry "ITA"]
[TimeControl "40/5400+30:1800+30"]

{[%evp 9,109,60,66,63,69,68,76,8,42,29,43,34,38,33,39,6,0,8,18,19,35,20,22,8,39,40,43,48,50,37,53,60,60,62,87,74,84,87,77,77,80,91,95,95,95,87,87,66,233,203,322,322,307,306,292,295,380,386,425,383,422,411,619,616,628,618,578,344,637,520,624,600,584,584,584,584,525,520,2310,2141,3531,1980,4451,3531,4132,3150,2365,2210,1783,1717,5800,5708,29974,29975,29975,29976,29976,29977,29977,29978,29978,29979]} 1. e4 {[%emt 0:00:05]} c6 {[%emt 0:00:05]} 2. d4 {[%emt 0:00:07]} d5 {[%emt 0:00:03]} 3. e5 {[%emt 0:00:07]} Qb6 {[%emt 0:01:46]} 4. Nf3 {[%emt 0:00:31]} Bg4 {[%emt 0:00:16]} 5. Be2 {[%emt 0:01:44]} e6 {[%emt 0:00:06]} 6. O-O {[%emt 0:01:10] B12: Caro-Kann: Advance Variation.} Ne7 {[%emt 0:00:17]} 7. Nbd2 {[%emt 0:02:02]} Nf5 {[%emt 0:04:57]} 8. Nb3 {[%emt 0:07:27]} (8. a4 $16) 8... Nd7 {[%emt 0:04:00]} (8... c5 $5 {[%cal Rg4f3]}) 9. a4 {[%emt 0:12:15]} a5 {[%emt 0:01:49] [#]} 10. h3 $146 {[%emt 0:04:14]} ({Predecessor:} 10. c3 g6 11. Bf4 Bxf3 12. Bxf3 h5 13. Rb1 Bh6 14. Bxh6 Nxh6 15. Nc1 {½-½ (36) Dimovski,N (2405)-Marcetic,N (2357) Leskovac 2002}) 10... Bxf3 {[%emt 0:00:08]} 11. Bxf3 {[%emt 0:00:04]} c5 {[%emt 0:04:00]} 12. dxc5 {[%emt 0:08:41]} Bxc5 {[%emt 0:18:49]} 13. Nxc5 {[%emt 0:04:09]} Qxc5 {[%emt 0:04:49]} 14. Bg4 {[%emt 0:03:55]} O-O {[%emt 0:12:49]} 15. Bxf5 {[%emt 0:06:21]} exf5 {[%emt 0:00:30]} 16. Be3 {[%emt 0:02:28]} Qc4 {[%emt 0:00:51]} 17. Qd4 {[%emt 0:19:22]} Qxd4 {[%emt 0:09:22]} 18. Bxd4 {[%emt 0:00:05]} Rfc8 {[%emt 0:05:25]} 19. c3 {[%emt 0:07:20]} Nf8 {[%emt 0:01:57]} 20. Rfd1 {[%emt 0:04:46]} Ne6 {[%emt 0:00:24]} 21. f3 {[%emt 0:01:34]} Rc4 {[%emt 0:16:10]} 22. Be3 {[%emt 0:01:10]} f4 {[%emt 0:08:01]} 23. Bf2 {[%emt 0:00:27]} Rd8 {[%emt 0:00:15]} 24. Bb6 {[%emt 0:03:18][%csl LRa5,LRd8]} Rd7 {[%emt 0:00:01]} 25. Bxa5 {[%emt 0:00:56]} d4 {[%emt 0:00:23]} 26. Bb6 {[%emt 0:04:08] Inhibits Rc5.} d3 {[%emt 0:01:56]} 27. Rd2 {[%emt 0:03:20]} Rd5 {[%emt 0:01:54]} 28. Rad1 {[%emt 0:00:58] And now a5 would win.} Rxe5 {[%emt 0:00:08] [#] A mistake that costs the game.} (28... Rxa4 $14 29. Rxd3 Rxd3 30. Rxd3 Ra2) 29. Rxd3 $18 {[%emt 0:00:07][%cal Od3d8]} h6 {[%emt 0:00:15]} (29... Kf8 {might work better.} 30. a5 Re2) 30. a5 {[%emt 0:01:41]} Ra4 {[%emt 0:00:34]} 31. R3d2 {[%emt 0:00:52]} g5 {[%emt 0:00:53]} 32. Kf2 {[%emt 0:00:10]} Rb5 {[%emt 0:00:21]} 33. b4 {[%emt 0:00:29][%cal Bb2b4,Bb4b5][%mdl 32]} Ra3 {[%emt 0:00:16]} 34. Rc2 {[%emt 0:00:36]} Re5 {[%emt 0:00:32]} 35. c4 {[%emt 0:00:37][%cal Bc3c4,Bc4b5,Bb5a6][%mdl 32]} Rb3 {[%emt 0:01:57]} (35... Ree3 $142 36. Bxe3 fxe3+ 37. Kg1 Kg7) 36. b5 {[%emt 0:00:05]} Nc5 {[%emt 0:00:37]} 37. Bxc5 {[%emt 0:00:59]} Rxc5 {[%emt 0:00:01]} 38. Ra1 {[%emt 0:00:31]} ({Weaker is} 38. a6 bxa6 39. bxa6 Ra3 $16) 38... Rbxb5 $2 {[%emt 0:01:02]} (38... Kg7 39. a6 bxa6) 39. cxb5 {[%emt 0:00:04]} Rxc2+ {[%emt 0:00:04][%mdl 4096] Endgame KR-KR} 40. Kf1 {[%emt 0:00:07] [#] Black must now prevent a6.} Rc7 {[%emt 0:01:36]} 41. a6 {[%emt 0:30:28]} bxa6 {[%emt 0:30:04]} 42. bxa6 {[%emt 0:00:54] Hoping for a7.} Ra7 {[%emt 0:00:04]} 43. Ke2 {[%emt 0:00:33] Kd3 is the strong threat.} Kf8 {[%emt 0:00:06]} (43... Kg7 $142 44. Kd3 Kg6) 44. Kd3 {[%emt 0:00:10]} Ke7 {[%emt 0:00:07]} 45. Kc4 {[%emt 0:00:00]} Kd6 {[%emt 0:00:00]} 46. Kb5 {[%emt 0:00:00]} Kc7 {[%emt 0:00:00]} 47. Re1 {[%emt 0:00:00]} Ra8 {[%emt 0:00:00]} 48. Re7+ {[%emt 0:00:00]} Kd6 {[%emt 0:00:00]} 49. Rxf7 {[%emt 0:00:00]} Rb8+ {[%emt 0:00:00]} 50. Rb7 {[%emt 0:00:00]} Rxb7+ {[%emt 0:00:00]} 51. axb7 {[%emt 0:00:00] White mates.} Kc7 {[%emt 0:00:00]} 52. Ka6 {[%emt 0:00:00]} Kb8 {[%emt 0:00:00]} 53. Kb6 {[%emt 0:00:00]} h5 {[%emt 0:00:00]} 54. Kc6 {[%emt 0:00:00]} h4 {[%emt 0:00:00]} 55. Kd5 {[%emt 0:00:00] Weighted Error Value: White=0.12 (very precise) /Black=0.58} 1-0

[Event "44th Chess Olympiad Women 2022"]
[Site "Chennai"]
[Date "2022.07.30"]
[Round "2.25"]
[White "Khan, Nazrana"]
[Black "Cassi, Elisa"]
[Result "0-1"]
[ECO "E54"]
[WhiteElo "1829"]
[BlackElo "1922"]
[Annotator "TA"]
[PlyCount "94"]
[EventDate "2022.07.29"]
[EventType "team-tourn"]
[EventCountry "IND"]
[SourceTitle "playchess.com"]
[Source "ChessBase"]
[SourceQuality "1"]
[WhiteTeam "Bangladesh"]
[BlackTeam "Italy"]
[WhiteTeamCountry "BAN"]
[BlackTeamCountry "ITA"]
[TimeControl "40/5400+30:1800+30"]

{[%evp 24,94,0,0,0,0,0,0,0,0,0,0,0,0,0,0,0,0,0,0,0,0,10,6,14,0,0,-8,-1,-3,0,-306,-293,-303,-294,-277,-269,-279,-272,-316,-317,-316,-262,-335,-327,-438,-441,-663,-652,-5506,-5510,-5193,-2682,-1633,-1677,-5614,-5842,-12820,-6520,-29977,-29978,-29984,-29982,-29984,-29985,-29985,-29984,-29985,-29986,-29986,-29987,-29988,-29989]} 1. d4 {[%emt 0:00:07]} d5 {[%emt 0:00:05]} 2. c4 {[%emt 0:00:09]} e6 {[%emt 0:00:04]} 3. Nf3 {[%emt 0:02:14]} Nf6 {[%emt 0:00:06]} 4. Nc3 {[%emt 0:01:06]} Bb4 {[%emt 0:00:06]} 5. e3 {[%emt 0:02:10]} O-O {[%emt 0:00:26]} 6. Bd3 {[%emt 0:00:36]} dxc4 {[%emt 0:00:09]} 7. Bxc4 {[%emt 0:00:26]} c5 {[%emt 0:00:06]} 8. O-O {[%emt 0:01:21]} cxd4 {[%emt 0:00:03]} 9. exd4 {[%emt 0:00:59]} b6 {[%emt 0:00:28]} 10. Ne5 {[%emt 0:01:11]} Bb7 {[%emt 0:02:44]} 11. Bg5 {[%emt 0:01:25]} Nbd7 {[%emt 0:03:52]} 12. Qe2 {[%emt 0:02:00]} Bxc3 {[%emt 0:02:13]} 13. bxc3 {[%emt 0:05:00]} Rc8 $1 {[%emt 0:00:18][%mdl 4] now scores much better than the old 13...Qc7. E54: Nimzo-Indian: Rubinstein: Main Line: 7...dxc4 8 Bxc4.} 14. Rac1 {[%emt 0:00:49]} Nxe5 {[%emt 0:01:06]} 15. dxe5 {[%emt 0:01:21]} Rc5 {[%emt 0:00:06] Hoping for ...Qc7. The position is equal.} 16. Bd3 {[%emt 0:04:21] [#] And now f4 would win.} Qc7 {[%emt 0:10:00]} (16... Qd5 17. f4 $16) 17. Bxf6 {[%emt 0:00:57]} gxf6 {[%emt 0:00:59]} 18. Qh5 {[%emt 0:01:12][%csl Gd3][%cal Rh5h7]} f5 {[%emt 0:07:41]} 19. Qg5+ {[%emt 0:01:11]} Kh8 {[%emt 0:01:24]} 20. Qf6+ {[%emt 0:01:21]} ({Reject} 20. Qh6 Rg8 21. Qf6+ Rg7 $17) 20... Kg8 {[%emt 0:00:08]} 21. Rfe1 {[%emt 0:03:10][%cal Bf1e1,Be1e3,Be3g3][%mdl 32]} Qd8 $40 {[%emt 0:13:12][%mdl 128] White needs to defend precisely.} 22. Qh6 {[%emt 0:01:53] Re3 is the strong threat.} f6 {[%emt 0:13:41] [#]} ({Much less strong is} 22... Qxd3 23. Re3 Rd8 24. h4 $18 (24. Rxd3 Rxd3 25. h4 Ra5 $18)) 23. Re3 $146 {[%emt 0:08:06] White threatens Rg3+ and mate.} ({Predecessor:} 23. Rcd1 Qe7 24. exf6 Rxf6 25. Qf4 Qc7 26. Qh4 Rg6 27. Bf1 Rd5 28. Rxd5 Bxd5 29. c4 {½-½ (80) Compagnone,G (2265)-Gagliardi,V (2153) ICCF email 2017}) 23... Qe7 {[%emt 0:01:08]} 24. Rg3+ {[%emt 0:16:52]} Kh8 {[%emt 0:00:04]} 25. exf6 {[%emt 0:00:47]} Rxf6 {[%emt 0:05:54]} 26. Qg5 {[%emt 0:04:27][%csl Gg3][%cal Rg5g8]} Qf7 {[%emt 0:03:25] Against Qg8+} 27. Rd1 $2 {[%emt 0:02:31][%mdl 8192] [#] Black keeps a firm grip on the game.} (27. Qf4 $11) 27... f4 $1 $19 {[%emt 0:03:05]} 28. Bf5 {[%emt 0:08:56] Intending Rd8+ and mate.} Rd5 {[%emt 0:07:44] Prevents Rd8+. Dancing on a razor blade.} 29. Rxd5 {[%emt 0:07:20]} Bxd5 {[%emt 0:00:31]} 30. Qxf4 {[%emt 0:04:51]} Rxf5 {[%emt 0:01:36]} 31. Qd2 {[%emt 0:02:46]} Qf6 {[%emt 0:04:06]} 32. h3 {[%emt 0:00:41]} h6 {[%emt 0:03:31]} 33. a3 {[%emt 0:06:13]} Rg5 {[%emt 0:01:10]} 34. Qe3 {[%emt 0:01:24]} Qe5 {[%emt 0:02:40] White must now prevent ...Qxe3.} 35. Rxg5 {[%emt 0:02:58]} (35. Qd2 $142 Rxg3 36. fxg3) 35... Qxe3 {[%emt 0:00:58]} 36. Rg8+ {[%emt 0:01:44]} Kxg8 {[%emt 0:00:15]} 37. fxe3 {[%emt 0:00:06][%mdl 4096] Endgame KB-KP} Kf7 {[%emt 0:00:21]} 38. Kf2 {[%emt 0:00:50]} Kf6 {[%emt 0:00:12] aiming for ...Kf5.} 39. g4 {[%emt 0:02:00]} Ke5 {[%emt 0:02:00]} 40. Kg3 {[%emt 0:01:05]} Ke4 {[%emt 0:02:35]} 41. Kh4 {[%emt 0:30:41]} Kxe3 {[%emt 0:31:21] Black mates.} 42. Kh5 {[%emt 0:00:09]} Bg2 {[%emt 0:00:29]} 43. Kxh6 {[%emt 0:01:31]} Bxh3 {[%emt 0:00:14]} 44. g5 {[%emt 0:00:28]} Bf5 {[%emt 0:00:07]} 45. Kg7 {[%emt 0:00:27]} Kf4 {[%emt 0:01:00]} 46. Kf6 {[%emt 0:00:54]} e5 {[%emt 0:00:07][%cal Be6e5,Be5e4][%mdl 32]} 47. a4 {[%emt 0:00:26]} e4 {[%emt 0:01:31] Weighted Error Value: White=1.05/Black=0.02 (flawless)} 0-1